fUSD/lending_fUSD_20260105
["ID","MTS","AMOUNT","RATE_DAILY","PERIOD"]
[400480855,1767636633496,-500.0,0.00017348,2]
[400480856,1767636633505,-14302.75998049,0.00017367,2]
[400480857,1767636633514,-659.45545516,0.00017386,2]
[400480858,1767636633523,-500.0,0.00017412,2]
[400480859,1767636633532,-500.0,0.00017412,2]
[400480860,1767636633542,-500.0,0.00017412,2]
[400480861,1767636633553,-500.0,0.00017412,2]
[400480862,1767636633562,-500.0,0.00017412,2]
[400480863,1767636633571,-500.0,0.00017412,2]
[400480864,1767636633581,-508.25738517,0.00017412,2]
[400480865,1767636633591,-7609.51430529,0.00017434,2]
[400480866,1767636633600,-14302.75998049,0.000175,2]
[400480867,1767636633609,-500.0,0.00017507,2]
[400480868,1767636633619,-274.97,0.00017551,2]
[400480869,1767636633630,-659.45545516,0.00017557,2]
[400480870,1767636633640,-7609.51430529,0.00017589,2]
[400480871,1767636633649,-675.74,0.00017621,2]
[400480872,1767636633658,-756.0,0.00017632,2]
[400480873,1767636633670,-14302.75998049,0.00017633,2]
[400480874,1767636633679,-595.37131296,0.00017647,2]
[400480875,1767636633688,-1000.0,0.000177,2]
[400480876,1767636633698,-500.0,0.00017705,2]
[400480877,1767636633707,-301.0,0.00017711,2]
[400480878,1767636633716,-1001.43294385,0.00017721,2]
[400480879,1767636633725,-256.01043912,0.00017721,2]
[400480880,1767636633735,-321.0804,0.00017721,2]
[400480881,1767636633744,-1000.85459949,0.00017721,2]
[400480882,1767636633753,-1000.0,0.00017721,2]
[400480883,1767636633762,-1000.0,0.00017721,2]
[400480884,1767636633772,-1099.98058356,0.00017721,2]
[400480885,1767636633781,-827.2396163,0.00017721,2]
[400480886,1767636633790,-632.9385196,0.00017721,2]
[400480887,1767636633800,-1000.0,0.00017721,2]
[400480888,1767636633811,-1000.0,0.00017721,2]
[400480889,1767636633822,-507.59595538,0.00017721,2]
[400480890,1767636633831,-1000.0,0.00017721,2]
[400480891,1767636633841,-1000.0,0.00017721,2]
[400480892,1767636633851,-1000.0,0.00017721,2]
[400480893,1767636633860,-1000.73448024,0.00017721,2]
[400480894,1767636633871,-367.69709203,0.00017721,2]
[400480895,1767636633880,-1000.0,0.00017721,2]
[400480896,1767636633889,-1000.0,0.00017721,2]
[400480897,1767636633899,-1000.0,0.00017721,2]
[400480898,1767636633911,-1000.0,0.00017721,2]
[400480899,1767636633922,-1000.0,0.00017721,2]
[400480900,1767636633931,-527.87076503,0.00017721,2]
[400480901,1767636633941,-1000.0,0.00017721,2]
[400480902,1767636633950,-1000.0,0.00017721,2]
[400480903,1767636633959,-1000.0,0.00017721,2]
[400480904,1767636633968,-646.06117857,0.00017721,2]
[400480905,1767636633978,-1000.0,0.00017726,2]
[400480906,1767636633987,-756.0,0.00017726,2]
[400480907,1767636633996,-659.45545516,0.00017729,2]
[400480908,1767636634007,-160.2054144,0.00017736,2]
[400480909,1767636634016,-1000.0,0.00017738,2]
[400480910,1767636634026,-150.0,0.00017741,2]
[400480911,1767636634034,-1000.0,0.00017744,2]
[400480912,1767636634044,-7609.51430529,0.00017745,2]
[400480913,1767636634054,-1000.0,0.00017748,2]
[400480914,1767636634063,-156.50935429,0.00017752,2]
[400480915,1767636634072,-1000.0,0.00017755,2]
[400480916,1767636634082,-150.0,0.00017757,2]
[400480917,1767636634091,-1000.0,0.00017758,2]
[400480918,1767636634101,-14302.75998049,0.00017767,2]
[400480919,1767636634110,-1000.0,0.00017769,2]
[400480920,1767636634119,-1000.0,0.00017772,2]
[400480921,1767636634129,-300.0,0.00017775,2]
[400480922,1767636634138,-150.0,0.00017778,2]
[400480923,1767636634148,-1000.0,0.00017778,2]
[400480924,1767636634157,-1000.0,0.00017779,2]
[400480925,1767636634167,-1000.0,0.00017785,2]
[400480926,1767636634176,-957.78253654,0.0001779,2]
[400480927,1767636634186,-1000.0,0.00017791,2]
[400480928,1767636634195,-29503.1548496,0.000178,3]
[400480929,1767636634205,-150.0,0.00017807,2]
[400480930,1767636634215,-150.0,0.00017818,2]
[400480931,1767636634225,-1200.0,0.00017819,2]
[400480932,1767636634234,-913.0,0.00017819,2]
[400480933,1767636634243,-4816.0,0.00017819,2]
[400480934,1767636634252,-2435.0,0.00017819,2]
[400480935,1767636634262,-328.14654,0.0001782,2]
[400480936,1767636634271,-328.14655,0.0001782,2]
[400480937,1767636634281,-1000.0,0.00017824,2]
[400480938,1767636634291,-1000.0,0.00017829,2]
[400480939,1767636634301,-271.7085003,0.0001783,2]
[400480940,1767636634311,-1000.0,0.0001783,2]
[400480941,1767636634320,-328.14654,0.0001783,2]
[400480942,1767636634329,-1000.0,0.00017836,2]
[400480943,1767636634340,-150.0,0.00017844,2]
[400480944,1767636634351,-1000.0,0.00017844,2]
[400480945,1767636634362,-300.0,0.0001785,2]
[400480946,1767636634373,-1000.0,0.0001785,2]
[400480947,1767636634383,-1000.0,0.00017855,2]
[400480948,1767636634392,-328.14655,0.0001786,2]
[400480949,1767636634403,-150.0,0.00017862,2]
[400480950,1767636634413,-260.08239546,0.00017863,2]
[400480951,1767636634423,-150.0,0.00017874,2]
[400480952,1767636634433,-1000.0,0.00017876,2]
[400480953,1767636634442,-150.0,0.00017878,2]
[400480954,1767636634452,-1000.0,0.00017878,2]
[400480955,1767636634464,-328.14655,0.0001788,2]
[400480956,1767636634475,-300.0,0.00017883,2]
[400480957,1767636634485,-1000.0,0.00017883,2]
[400480958,1767636634495,-150.0,0.00017886,2]
[400480959,1767636634506,-1000.0,0.00017889,2]
[400480960,1767636634516,-150.0,0.00017892,2]
[400480961,1767636634526,-150.0,0.00017894,2]
[400480962,1767636634536,-1000.0,0.00017894,2]
[400480963,1767636634547,-1000.0,0.00017894,2]
[400480964,1767636634559,-1000.0,0.00017894,2]
[400480965,1767636634568,-675.74,0.00017895,2]
[400480966,1767636634577,-300.0,0.00017896,2]
[400480967,1767636634589,-4452.2098,0.000179,2]
[400480968,1767636634600,-1000.0,0.000179,2]
[400480969,1767636634609,-14302.75998049,0.000179,2]
[400480970,1767636634619,-659.45545516,0.000179,2]
[400480971,1767636634631,-1517.3483858,0.000179,2]
[400480972,1767636634641,-174.97600932,0.000179,2]
[400480973,1767636634650,-4446.52168755,0.000179,2]
[400480974,1767636634661,-7609.51430529,0.000179,2]
[400480975,1767636634671,-300.0,0.00017901,2]
[400480976,1767636634680,-150.0,0.00017903,2]
[400480977,1767636634689,-328.14654,0.0001791,2]
[400480978,1767636634700,-1000.0,0.00017914,2]
[400480979,1767636634710,-1000.0,0.00017917,2]
[400480980,1767636634719,-1000.0,0.00017921,2]
[400480981,1767636634728,-1000.0,0.00017923,2]
[400480982,1767636634738,-1000.0,0.00017925,2]
[400480983,1767636634747,-1000.0,0.00017926,2]
[400480984,1767636634756,-150.0,0.00017938,2]
[400480985,1767636634765,-1000.0,0.00017938,2]
[400480986,1767636634774,-1000.0,0.00017938,2]
[400480987,1767636634783,-500.0,0.00017945,2]
[400480988,1767636634793,-19782.6108658,0.00017946,2]
[400480989,1767636634803,-150.0,0.00017947,2]
[400480990,1767636634817,-1000.0,0.00017951,2]
[400480991,1767636634826,-1000.0,0.00017955,2]
[400480992,1767636634835,-1000.0,0.00017959,2]
[400480993,1767636634845,-1000.0,0.00017959,2]
[400480994,1767636634855,-1000.0,0.00017968,2]
[400480995,1767636634865,-150.0,0.00017969,2]
[400480996,1767636634875,-150.0,0.00017971,2]
[400480997,1767636634884,-1000.0,0.00017971,2]
[400480998,1767636634893,-957.78253654,0.00017971,2]
[400480999,1767636634903,-215.11491997,0.00017973,2]
[400481000,1767636634913,-500.0,0.00017973,2]
[400481001,1767636634923,-150.0,0.00017973,2]
[400481002,1767636634932,-1329.0,0.00017973,2]
[400481003,1767636634942,-3466.0,0.00017973,2]
[400481004,1767636634951,-631.05,0.00017973,2]
[400481005,1767636634960,-1404.0,0.00017973,2]
[400481006,1767636634970,-433.0,0.00017973,2]
[400481007,1767636634979,-1341.744,0.00017973,2]
[400481008,1767636634988,-1121.53239193,0.00017973,2]
[400481009,1767636634998,-300.0,0.00017975,2]
[400481010,1767636635008,-1000.0,0.00017981,2]
[400481011,1767636635018,-505.85873594,0.00017982,2]
[400481012,1767636635027,-186.15168493,0.0001799,2]
[400481013,1767636635036,-259.94132505,0.00017994,2]
[400481014,1767636635046,-300.0,0.00017994,2]
[400481015,1767636635056,-1060.87558749,0.00017999,5]
[400481016,1767636635066,-666.0,0.00017999,2]
[400481017,1767636635075,-666.0,0.00017999,2]
[400481018,1767636635084,-447165.07908518,0.00018,2]
[400481019,1767636635505,-548.24314477,0.00018,2]
[400481020,1767636635520,-12856.4014409,0.00018,2]
[400481021,1767636635532,-7041.87211733,0.00018,2]
[400481022,1767636635544,-1501.99056459,0.00018,2]
[400481023,1767636635560,-414.5029998,0.00018,2]
[400481024,1767636635571,-476.68734053,0.00018,2]
[400481025,1767636635581,-1100.7542825,0.00018,2]
[400481030,1767636638198,-1000000.0,0.000166,2]
[400481031,1767636638209,-151.0,0.00017056,2]
[400481032,1767636638218,-151.0,0.00017056,2]
[400481033,1767636638228,-6548.0,0.00017819,2]
[400481034,1767636638238,-1457937.71649214,0.00018,2]
[400481035,1767636638249,-602351.53918421,0.00018,2]
[400481036,1767636638260,-2423.40103299,0.00018,2]
[400481037,1767636638269,-198.11,0.00018,7]
[400481038,1767636638279,-910074.12845875,0.00018,2]
[400481039,1767636638305,-5533.80126169,0.00018,2]
[400481040,1767636638318,-2717.68168287,0.00018,2]
[400481041,1767636638330,-3668.89716989,0.00018,2]
[400481042,1767636638359,-8859.55477781,0.00018,2]
[400481043,1767636638371,-3725.59414761,0.00018,2]
[400481044,1767636638384,-13738.25960731,0.00018,2]
[400481045,1767636638413,-478.37891291,0.00018,2]
[400481046,1767636638467,-1221.00880848,0.00018,2]
[400481047,1767636638478,-4909.64065108,0.00018,2]
[400481075,1767636640416,-907.40552681,0.00018,2]
[400481076,1767636640431,-4365.43074627,0.00018,2]
[400481077,1767636642398,-1358.10438257,0.00018,2]
[400481078,1767636642409,-1979.1045895,0.00018,2]
[400481079,1767636642420,-998.46453298,0.00018,2]
[400481080,1767636642560,-596.298,0.00018,2]
[400481081,1767636642617,-372.34049029,0.00018,2]
[400481082,1767636642630,-393.66239999,0.00018,2]
[400481083,1767636642641,-6396.20000012,0.00018,2]
[400481090,1767636644834,-565.0,0.00017819,2]
[400481091,1767636644844,-50784.72411662,0.00018,2]
[400481092,1767636644889,-416722.12750065,0.00018,2]
[400481093,1767636644900,-894540.13454118,0.00018,2]
[400481094,1767636644911,-35563.1858197,0.00018,2]
[400481100,1767636646210,-297.23694273,0.00016599,2]
[400481101,1767636646220,-377.73483557,0.00016599,2]
[400481102,1767636646231,-122.26516443,0.00016599,2]
[400481103,1767636646243,-2288.81337857,0.00018,2]
[400481104,1767636646526,-254.84806896,0.00016599,2]
[400481105,1767636646535,-754.30760265,0.00018,2]
[400481108,1767636756002,500.0,0.00016461,2]
[400481109,1767636785094,14365.52275259,0.000165,2]
[400481110,1767636785133,902061.78324741,0.000165,2]
[400481111,1767636799777,1000.0,0.000165,2]
[400481112,1767636817990,2500.0,0.000165,2]
[400481113,1767636843053,186.75,0.00015931,2]
[400481114,1767636911686,870.67,0.00015931,2]
[400481117,1767637406638,170.43,8.354e-05,2]
[400481142,1767637509960,5466.33,0.00016438,2]
[400481143,1767637511049,1918.5795,0.00016499,2]
[400481144,1767637543560,3928.3,0.0001645,2]
[400481147,1767637682386,368.242097,0.00016473,2]
[400481149,1767637731366,3222.1,0.00016431,2]
[400481161,1767637831401,-250.0,0.00016556,2]
[400481162,1767637831411,-300.0,0.00016598,2]
[400481163,1767637831421,-1200.0,0.00016598,2]
[400481164,1767637831431,-150.0,0.00016598,2]
[400481165,1767637831441,-1348.56,0.00016599,10]
[400481166,1767637831451,-30758.344,0.00016599,10]
[400481167,1767637831461,-187.47,0.00016705,2]
[400481168,1767637831471,-164.79,0.00016712,2]
[400481169,1767637831481,-172.42211942,0.00016715,5]
[400481170,1767637831490,-150.99,0.00016756,2]
[400481171,1767637831500,-150.99,0.00016756,2]
[400481172,1767637831510,-9999.99,0.00016756,2]
[400481173,1767637831519,-500.0,0.00016999,2]
[400481174,1767637831529,-500.0,0.00016999,2]
[400481175,1767637831538,-446.21871231,0.00016999,2]
[400481176,1767637831547,-371.85491348,0.00016999,2]
[400481177,1767637831557,-409.749693,0.00016999,2]
[400481179,1767637831567,-500.0,0.00016999,2]
[400481181,1767637831576,-558.16584792,0.00016999,2]
[400481183,1767637831586,-23767.13444816,0.00017,2]
[400481185,1767637831596,-345.0,0.00017096,2]
[400481186,1767637831605,-267.3406269,0.00017099,2]
[400481187,1767637831615,-241.9466298,0.00017162,2]
[400481189,1767637831625,-500.0,0.00017173,2]
[400481191,1767637831635,-442.83023798,0.00017173,2]
[400481192,1767637831644,-500.0,0.00017173,2]
[400481193,1767637831655,-500.0,0.00017173,2]
[400481194,1767637831666,-305.36879168,0.00017173,2]
[400481196,1767637831676,-500.0,0.00017173,2]
[400481198,1767637831685,-500.0,0.00017173,2]
[400481200,1767637831694,-500.0,0.00017173,2]
[400481202,1767637831703,-500.0,0.00017173,2]
[400481203,1767637831713,-500.0,0.00017173,2]
[400481205,1767637831722,-500.0,0.00017173,2]
[400481206,1767637831731,-500.0,0.00017173,2]
[400481207,1767637831740,-500.0,0.00017173,2]
[400481208,1767637831751,-166.67,0.00017196,2]
[400481209,1767637831760,-151.0,0.00017274,2]
[400481210,1767637831769,-151.0,0.00017274,2]
[400481211,1767637831779,-383.0,0.00017288,2]
[400481212,1767637831787,-837.0,0.00017491,2]
[400481213,1767637831797,-837.0,0.00017566,2]
[400481214,1767637831806,-837.0,0.00017568,2]
[400481215,1767637831815,-837.0,0.00017588,2]
[400481216,1767637831824,-245.0,0.00017616,2]
[400481217,1767637831833,-207.87385348,0.0001762,2]
[400481218,1767637831843,-294.46235368,0.0001762,2]
[400481219,1767637831852,-191.02983413,0.0001762,2]
[400481220,1767637831861,-449.72834855,0.0001762,2]
[400481221,1767637831870,-4105.521,0.00017621,2]
[400481222,1767637831883,-54453.7699,0.00017621,2]
[400481223,1767637831893,-187.47,0.00017633,2]
[400481224,1767637831903,-837.0,0.00017635,2]
[400481225,1767637831912,-2423.40103299,0.0001764,2]
[400481226,1767637831922,-155.0975,0.00017663,2]
[400481227,1767637831931,-837.0,0.00017702,2]
[400481228,1767637831940,-155.0975,0.0001771,2]
[400481229,1767637831952,-837.0,0.0001772,2]
[400481230,1767637831961,-1000.0,0.00017721,2]
[400481231,1767637831970,-1000.0,0.00017721,2]
[400481232,1767637831980,-500.0,0.00017721,2]
[400481233,1767637831989,-627.336053,0.00017721,2]
[400481234,1767637831999,-1000.0,0.00017721,2]
[400481235,1767637832008,-1000.0,0.00017721,2]
[400481236,1767637832018,-509.02384917,0.00017721,2]
[400481237,1767637832027,-500.77724877,0.00017721,2]
[400481238,1767637832036,-1000.0,0.00017721,2]
[400481239,1767637832046,-1000.0,0.00017721,2]
[400481240,1767637832055,-1000.0,0.00017721,2]
[400481241,1767637832064,-168.0,0.00017736,2]
[400481242,1767637832073,-155.0975,0.00017758,2]
[400481243,1767637832083,-286.3773889,0.00017763,2]
[400481244,1767637832092,-103985.20124328,0.00017763,2]
[400481245,1767637837437,-2490.0029977,0.00017763,2]
[400481246,1767637837449,-1315.68623605,0.00017763,2]
[400481247,1767637837488,-5367.89969804,0.00017763,2]
[400481248,1767637837544,-172565.39611943,0.00017763,2]
[400481249,1767637837554,-3292.8152213,0.00017763,2]
[400481250,1767637837563,-163.6789036,0.00017763,2]
[400481251,1767637837573,-837.0,0.00017765,2]
[400481252,1767637837583,-400.0,0.000178,2]
[400481253,1767637837593,-155.0975,0.00017805,2]
[400481254,1767637837605,-155.0975,0.00017853,2]
[400481255,1767637837615,-313.492,0.00017887,2]
[400481256,1767637837624,-176.00373244,0.000179,2]
[400481257,1767637837634,-1264.45698815,0.000179,2]
[400481258,1767637837643,-155.0975,0.000179,2]
[400481259,1767637837652,-233.30134576,0.000179,2]
[400481260,1767637837662,-837.0,0.00017935,2]
[400481261,1767637837672,-215.11491997,0.00017973,2]
[400481262,1767637837682,-500.0,0.00017973,2]
[400481263,1767637837691,-336.03289894,0.00017973,2]
[400481264,1767637837701,-1266.0,0.00017973,2]
[400481265,1767637837710,-433.0,0.00017973,2]
[400481266,1767637837720,-913.0,0.00017973,2]
[400481267,1767637837729,-1200.0,0.00017973,2]
[400481268,1767637837739,-2435.0,0.00017973,2]
[400481269,1767637837748,-1329.0,0.00017973,2]
[400481270,1767637837757,-614.0,0.00017973,2]
[400481271,1767637837767,-184.3400586,0.00017999,2]
[400481272,1767637837777,-2747301.45351648,0.00018,2]
[400481273,1767637837786,-35709.51696342,0.00018,2]
[400481276,1767637839448,-1446.42047512,0.00018,2]
[400481277,1767637839554,-6896.83796951,0.00018,2]
[400481278,1767637839565,-1228.94156,0.00018,2]
[400481279,1767637839644,-1746.48,0.00018,2]
[400481280,1767637839655,-1654.83784661,0.00018,2]
[400481281,1767637839666,-4493.96629721,0.00018,2]
[400481282,1767637839678,-447.342008,0.00018,2]
[400481306,1767637844022,-8585.9413,0.00017521,2]
[400481307,1767637844032,-151.0,0.00017798,2]
[400481308,1767637844042,-151.0,0.00017798,2]
[400481309,1767637844052,-1404.0,0.00017973,2]
[400481310,1767637844062,-80544.86586786,0.00018,2]
[400481311,1767637844074,-229431.72191424,0.00018,2]
[400481312,1767637844083,-395882.89400809,0.00018,2]
[400481313,1767637844092,-150.0,0.00018,2]
[400481314,1767637844106,-1520.67183313,0.00018,2]
[400481315,1767637844115,-150.0,0.00018,2]
[400481316,1767637844127,-1822.92999417,0.00018,2]
[400481317,1767637844138,-150.0,0.00018,2]
[400481318,1767637844147,-12670.39925101,0.00018,2]
[400481319,1767637844156,-150.0,0.00018,2]
[400481320,1767637844166,-1494.12831245,0.00018,2]
[400481321,1767637844176,-151.0,0.00018,2]
[400481322,1767637844186,-151.0,0.00018,2]
[400481323,1767637844195,-943.4079499,0.00018,2]
[400481324,1767637844205,-7162.73723767,0.00018,3]
[400481325,1767637844214,-198.11,0.00018,7]
[400481326,1767637844224,-200.0,0.00018,2]
[400481327,1767637844233,-1256.0,0.00018,2]
[400481328,1767637844242,-200.0,0.00018,2]
[400481329,1767637844252,-405.45,0.00018,2]
[400481330,1767637844261,-152.0,0.00018,2]
[400481331,1767637844270,-155.05260602,0.00018,2]
[400481332,1767637844279,-272429.00871236,0.00018,2]
[400481333,1767637844295,-95063.64731346,0.00018,2]
[400481334,1767637845455,-2226.12780612,0.00018,2]
[400481335,1767637845467,-8044.72633569,0.00018,2]
[400481336,1767637845672,-1912.77047311,0.00018,2]
[400481353,1767637944097,39712.3208,0.00016499,2]
[400481354,1767637972310,1000.0,0.00016356,2]
[400481355,1767637992301,500.0,0.00016356,2]
[400481356,1767638029004,500.0,0.00016356,2]
[400481358,1767638225703,658.58,0.00013699,2]
[400481359,1767638533567,689.4833,0.00016468,2]
[400481559,1767638752130,413.67066,0.00016454,2]
[400481564,1767638839094,-1027.2,0.0001658,2]
[400481565,1767638839123,-0.00901299,0.00016628,2]
[400481566,1767638859846,166.66,0.00015776,2]
[400481567,1767638860069,166.66,0.00016108,2]
[400481568,1767638860316,166.66,0.0001644,2]
[400481643,1767639031751,-189.97,0.00016575,2]
[400481645,1767639031760,-289.0,0.00016575,2]
[400481647,1767639031770,-299.99098701,0.00016628,2]
[400481649,1767639031779,-200.0,0.00016633,2]
[400481651,1767639031788,-139.79901299,0.00016639,2]
[400481787,1767639037594,-55.20098701,0.00016639,2]
[400481788,1767639037605,-200.0,0.00016652,2]
[400481789,1767639037615,-200.0,0.00016652,2]
[400481790,1767639037625,-300.0,0.00016655,2]
[400481791,1767639037635,-172.686956,0.00016655,2]
[400481792,1767639037646,-1000.0,0.0001666,2]
[400481793,1767639037655,-195.0,0.00016679,2]
[400481794,1767639037665,-2972.84924447,0.00016726,2]
[400481795,1767639037685,-63.24075553,0.00016726,2]
[400481796,1767639037696,-166.66,0.00016772,2]
[400481797,1767639037708,-299.72197491,0.00016786,5]
[400481798,1767639037719,-200.0,0.00016807,2]
[400481799,1767639037729,-250.0,0.00017,2]
[400481800,1767639037739,-166.66,0.00017104,2]
[400481801,1767639037749,-1200.0,0.00017167,2]
[400481802,1767639037759,-1200.0,0.00017168,2]
[400481803,1767639037768,-300.0,0.0001717,2]
[400481804,1767639037778,-257.0,0.0001717,2]
[400481805,1767639037791,-8368.77449457,0.00017171,2]
[400481806,1767639037805,-366.19755381,0.00017171,2]
[400481807,1767639037817,-1265.01795162,0.00017171,2]
[400481808,1767639037827,-17.22224408,0.00017172,2]
[400481809,1767639037839,-132.77775592,0.00017172,2]
[400481810,1767639037849,-500.0,0.00017173,2]
[400481811,1767639037859,-500.0,0.00017173,2]
[400481812,1767639037869,-501.70391837,0.00017173,2]
[400481814,1767639037881,-500.0,0.00017173,2]
[400481817,1767639037891,-500.0,0.00017173,2]
[400481818,1767639037901,-500.0,0.00017173,2]
[400481819,1767639037911,-500.0,0.00017173,2]
[400481820,1767639037921,-500.0,0.00017173,2]
[400481821,1767639037931,-500.0,0.00017173,2]
[400481822,1767639037940,-500.0,0.00017173,2]
[400481823,1767639037950,-635.71123212,0.00017173,2]
[400481824,1767639037962,-218.2586549,0.00017173,2]
[400481825,1767639037973,-200.0,0.00017174,2]
[400481826,1767639037982,-151.0,0.00017258,2]
[400481827,1767639037995,-151.0,0.00017258,2]
[400481828,1767639038005,-180.0,0.00017311,2]
[400481829,1767639038015,-189.97,0.00017403,2]
[400481830,1767639038025,-166.66,0.00017436,2]
[400481831,1767639038036,-1000.0,0.00017449,2]
[400481832,1767639038047,-1031.0,0.000175,5]
[400481833,1767639038057,-1402.0,0.00017588,2]
[400481834,1767639038067,-1402.0,0.0001763,2]
[400481835,1767639038078,-1211.7005165,0.0001764,2]
[400481836,1767639038088,-180.0,0.00017651,2]
[400481837,1767639038098,-168.0,0.00017667,2]
[400481838,1767639038107,-1000.0,0.00017721,2]
[400481839,1767639038117,-347.68423544,0.00017721,2]
[400481840,1767639038127,-1000.0,0.00017721,2]
[400481841,1767639038137,-1000.0,0.00017721,2]
[400481842,1767639038147,-500.0,0.00017721,2]
[400481843,1767639038157,-1000.0,0.00017721,2]
[400481844,1767639038167,-1000.0,0.00017726,7]
[400481845,1767639038177,-500.0,0.00017726,7]
[400481846,1767639038188,-1402.0,0.00017728,2]
[400481847,1767639038200,-313.492,0.00017894,2]
[400481848,1767639038212,-465.2925,0.000179,2]
[400481849,1767639038223,-176.00373244,0.000179,2]
[400481850,1767639038234,-1264.45698815,0.000179,2]
[400481851,1767639038248,-233.30134576,0.000179,2]
[400481852,1767639038258,-296.43475918,0.00017972,2]
[400481853,1767639038268,-500.0,0.00017972,2]
[400481854,1767639038279,-500.0,0.00017972,2]
[400481855,1767639038288,-500.0,0.00017972,2]
[400481856,1767639038299,-500.0,0.00017972,2]
[400481857,1767639038309,-500.0,0.00017972,2]
[400481858,1767639038320,-231.00016381,0.00017972,2]
[400481859,1767639038330,-430.47972289,0.00017972,2]
[400481860,1767639038340,-500.0,0.00017972,2]
[400481861,1767639038350,-500.0,0.00017972,2]
[400481862,1767639038360,-162.54247791,0.00017972,2]
[400481863,1767639038369,-500.0,0.00017972,2]
[400481864,1767639038380,-500.0,0.00017972,2]
[400481865,1767639038391,-500.0,0.00017972,2]
[400481866,1767639038400,-500.0,0.00017972,2]
[400481867,1767639038410,-500.0,0.00017972,2]
[400481868,1767639038421,-324.36,0.00017972,2]
[400481869,1767639038431,-215.11491997,0.00017973,2]
[400481870,1767639038440,-336.03289894,0.00017973,2]
[400481871,1767639038450,-500.0,0.00017973,2]
[400481872,1767639038461,-1404.0,0.00017973,2]
[400481873,1767639038471,-614.0,0.00017973,2]
[400481874,1767639038482,-3458.0,0.00017973,2]
[400481875,1767639038492,-1329.0,0.00017973,2]
[400481876,1767639038502,-433.0,0.00017973,2]
[400481877,1767639038512,-6548.0,0.00017973,2]
[400481878,1767639038522,-565.0,0.00017973,2]
[400481879,1767639038532,-2435.0,0.00017973,2]
[400481880,1767639038542,-43418.06682659,0.00017999,2]
[400481881,1767639038555,-12601.45225398,0.00017999,2]
[400481882,1767639038566,-4443.70274,0.00017999,2]
[400481883,1767639038587,-6698.61527663,0.00017999,2]
[400481884,1767639038598,-3292.5668729,0.00017999,2]
[400481885,1767639038608,-184.3400586,0.00017999,2]
[400481886,1767639038619,-202.08566126,0.00017999,2]
[400481887,1767639038629,-189.5407246,0.00017999,2]
[400481888,1767639038639,-500.0,0.00017999,2]
[400481889,1767639038649,-331.51006749,0.00017999,2]
[400481890,1767639038660,-335.89525135,0.00017999,2]
[400481891,1767639038671,-2788684.94513583,0.00018,2]
[400481893,1767639039601,-409194.13616515,0.00018,2]
[400481894,1767639039613,-310.71335497,0.00018,2]
[400481895,1767639039761,-81289.43864747,0.00018,2]
[400481896,1767639039774,-14587.53601149,0.00018,2]
[400481897,1767639039787,-9080.01859324,0.00018,2]
[400481898,1767639039894,-1387.86673677,0.00018,2]
[400481899,1767639039907,-342.48991655,0.00018,2]
[400481900,1767639039919,-1908.8450125,0.00018,2]
[400481901,1767639039932,-4314.1106964,0.00018,2]
[400481902,1767639039944,-573.674504,0.00018,2]
[400481903,1767639039955,-10045.45113752,0.00018,2]
[400481904,1767639039971,-2387.81366846,0.00018,2]
[400481905,1767639039987,-8593.33240655,0.00018,2]
[400481906,1767639039999,-899.99975,0.00018,2]
[400481907,1767639040011,-79025.83991162,0.00018,2]
[400481908,1767639040031,-7342.04649909,0.00018,2]
[400481910,1767639040043,-15572.49999997,0.00018,2]
[400481926,1767639043275,-151.0,0.00017376,2]
[400481927,1767639043286,-284.23722882,0.00017973,2]